Workbook

Sheet Saisie
C1: SAISIE | J1: Fiche 104 (Lignes 5 à 9) à transférer dans feuille "Report" à la suite des transferts déjà faits
J2: (Faut-il un bouton de transfert ?)
A4: N° Ordre | B4: Réf. Mois | C4: Date | D4: N° Fiche | E4: N° Fiche | F4: Client | G4: Réf. Art. | H4: N° Art. | I4: Code Article | J4: Désignation Article | K4: Unité | L4: Quantité | M4: Prix Unité HT | N4: Montant HT Brut | O4: Indice | P4: Remise % | Q4: Remise Montant | R4: Montant HT Net | S4: Taux TVA | T4: Montant TVA | U4: Montant TTC
A5: C | B5: 03 | C5: 2017-03-02 | E5: 104 | F5: COMPTOIR | I5: 1 | J5: =IF(ISNA(INDEX([1]ART!$C:$C,MATCH(I5,[1]ART!$B:$B,0))),"",INDEX([1]ART!$C:$C,MATCH(I5,[1]ART!$B:$B,0))) ->  | K5: =IF(ISNA(INDEX([1]ART!$D:$D,MATCH(I5,[1]ART!$B:$B,0))),"",INDEX([1]ART!$D:$D,MATCH(I5,[1]ART!$B:$B,0))) ->  | N5: =SUMIF(A:A,O:O,N:N) -> 1380 | O5: =O6 -> 1 | R5: =N5-Q5 -> 1380 | S5: =S6 -> 0.19 | T5: =R5*S5 -> 262.2 | U5: =R5+T5 -> 1642.2
A6: 1 | B6: =IF(C6<>"","",IF(B5="",B5,B5)) -> 03 | D6: =IF(E6<>"","",IF(D5="",E5,D5)) -> 104 | G6: =IF(ISNA(INDEX([1]ART!$M:$M,MATCH(I6,[1]ART!$B:$B,0))),"",INDEX([1]ART!$M:$M,MATCH(I6,[1]ART!$B:$B,0))) -> 0 | H6: 1 | I6: PP | J6: =IF(ISNA(INDEX([1]ART!$C:$C,MATCH(I6,[1]ART!$B:$B,0))),"",INDEX([1]ART!$C:$C,MATCH(I6,[1]ART!$B:$B,0))) -> Traçage Noir & Blanc / Papier | K6: =IF(ISNA(INDEX([1]ART!$D:$D,MATCH(I6,[1]ART!$B:$B,0))),"",INDEX([1]ART!$D:$D,MATCH(I6,[1]ART!$B:$B,0))) -> ML | L6: 3 | M6: 160 | N6: =L6*M6 -> 480 | O6: =Saisie[[#This Row],[N° Ordre]] -> 1 | P6: =IF(E6<>"","",IF(P5="",P5,P5)) -> 0 | R6: =IF($N6="","",$N6-$Q6) -> 480 | S6: =IF(ISNA(INDEX([1]ART!$H:$H,MATCH(I6,[1]ART!$B:$B,0))),"",INDEX([1]ART!$H:$H,MATCH(I6,[1]ART!$B:$B,0))) -> 0.19 | T6: =IFERROR(R6*S6,"") -> 91.2 | U6: =IFERROR(R6+T6,"") -> 571.2
A7: =A6 -> 1 | B7: 03 | D7: 104 | G7: =IF(ISNA(INDEX([1]ART!$M:$M,MATCH(I7,[1]ART!$B:$B,0))),"",INDEX([1]ART!$M:$M,MATCH(I7,[1]ART!$B:$B,0))) -> 0 | H7: 2 | I7: C3 | J7: =IF(ISNA(INDEX([1]ART!$C:$C,MATCH(I7,[1]ART!$B:$B,0))),"",INDEX([1]ART!$C:$C,MATCH(I7,[1]ART!$B:$B,0))) -> Copie Noir & Blanc A3-R / Papier | K7: =IF(ISNA(INDEX([1]ART!$D:$D,MATCH(I7,[1]ART!$B:$B,0))),"",INDEX([1]ART!$D:$D,MATCH(I7,[1]ART!$B:$B,0))) -> U | L7: 20 | M7: 10 | N7: 200 | O7: =Saisie[[#This Row],[N° Ordre]] -> 1 | P7: 0 | R7: =IF($N7="","",$N7-$Q7) -> 200 | S7: =IF(ISNA(INDEX([1]ART!$H:$H,MATCH(I7,[1]ART!$B:$B,0))),"",INDEX([1]ART!$H:$H,MATCH(I7,[1]ART!$B:$B,0))) -> 0.19 | T7: 38 | U7: 238
A8: =A7 -> 1 | B8: 03 | D8: 104 | G8: =IF(ISNA(INDEX([1]ART!$M:$M,MATCH(I8,[1]ART!$B:$B,0))),"",INDEX([1]ART!$M:$M,MATCH(I8,[1]ART!$B:$B,0))) -> 0 | H8: 3 | I8: I4 | J8: =IF(ISNA(INDEX([1]ART!$C:$C,MATCH(I8,[1]ART!$B:$B,0))),"",INDEX([1]ART!$C:$C,MATCH(I8,[1]ART!$B:$B,0))) -> Impression Noir & Blanc A4-R / Papier | K8: =IF(ISNA(INDEX([1]ART!$D:$D,MATCH(I8,[1]ART!$B:$B,0))),"",INDEX([1]ART!$D:$D,MATCH(I8,[1]ART!$B:$B,0))) -> U | L8: 5 | M8: 20 | N8: 100 | O8: =Saisie[[#This Row],[N° Ordre]] -> 1 | P8: 0 | R8: 100 | S8: =S5 -> 0.19 | T8: 19 | U8: 119
A9: =A8 -> 1 | B9: 03 | D9: 104 | G9: =IF(ISNA(INDEX([1]ART!$M:$M,MATCH(I9,[1]ART!$B:$B,0))),"",INDEX([1]ART!$M:$M,MATCH(I9,[1]ART!$B:$B,0))) -> 0 | H9: 4 | I9: NP | J9: =IF(ISNA(INDEX([1]ART!$C:$C,MATCH(I9,[1]ART!$B:$B,0))),"",INDEX([1]ART!$C:$C,MATCH(I9,[1]ART!$B:$B,0))) -> Numérisation Noir & Blanc de plan ou carte | K9: =IF(ISNA(INDEX([1]ART!$D:$D,MATCH(I9,[1]ART!$B:$B,0))),"",INDEX([1]ART!$D:$D,MATCH(I9,[1]ART!$B:$B,0))) -> ML | L9: 2 | M9: 300 | N9: 600 | O9: =Saisie[[#This Row],[N° Ordre]] -> 1 | P9: 0 | R9: 600 | S9: =S6 -> 0.19 | T9: 114 | U9: 714
A10: 1 | B10: =IF(C10<>"","",IF(B9="",B9,B9)) -> 03 | D10: =IF(E10<>"","",IF(D9="",E9,D9)) -> 104 | G10: =IF(ISNA(INDEX([1]ART!$M:$M,MATCH(I10,[1]ART!$B:$B,0))),"",INDEX([1]ART!$M:$M,MATCH(I10,[1]ART!$B:$B,0))) ->  | H10: 5 | I10: =IF(ISNA(INDEX([1]ART!$B:$B,MATCH(F10,[1]ART!$M:$M,0))),"",INDEX([1]ART!$B:$B,MATCH(F10,[1]ART!$M:$M,0))) ->  | J10: =IF(ISNA(INDEX([1]ART!$C:$C,MATCH(I10,[1]ART!$B:$B,0))),"",INDEX([1]ART!$C:$C,MATCH(I10,[1]ART!$B:$B,0))) ->  | K10: =IF(ISNA(INDEX([1]ART!$D:$D,MATCH(I10,[1]ART!$B:$B,0))),"",INDEX([1]ART!$D:$D,MATCH(I10,[1]ART!$B:$B,0))) ->  | M10: =IF(ISERROR(VLOOKUP($I10,[1]ART!$B:$G,3+OFFSET($A:$A,MATCH($A10,$A:$A,0)-2,8,1,1),FALSE)),"",(VLOOKUP($I10,[1]ART!$B:$G,3+OFFSET($A:$A,MATCH($A10,$A:$A,0)-2,8,1,1),FALSE))) ->  | N10: =IFERROR(L10*M10,"") ->  | O10: =A10 -> 1 | Q10: =IFERROR(N10*P10,"") ->  | S10: =IF(ISNA(INDEX([1]ART!$H:$H,MATCH(I10,[1]ART!$B:$B,0))),"",INDEX([1]ART!$H:$H,MATCH(I10,[1]ART!$B:$B,0))) -> 
A11: 1 | B11: 03 | D11: 104 | G11: =IF(ISNA(INDEX([1]ART!$M:$M,MATCH(I11,[1]ART!$B:$B,0))),"",INDEX([1]ART!$M:$M,MATCH(I11,[1]ART!$B:$B,0))) ->  | H11: 6 | I11: =IF(ISNA(INDEX([1]ART!$B:$B,MATCH(F11,[1]ART!$M:$M,0))),"",INDEX([1]ART!$B:$B,MATCH(F11,[1]ART!$M:$M,0))) ->  | J11: =IF(ISNA(INDEX([1]ART!$C:$C,MATCH(I11,[1]ART!$B:$B,0))),"",INDEX([1]ART!$C:$C,MATCH(I11,[1]ART!$B:$B,0))) ->  | K11: =IF(ISNA(INDEX([1]ART!$D:$D,MATCH(I11,[1]ART!$B:$B,0))),"",INDEX([1]ART!$D:$D,MATCH(I11,[1]ART!$B:$B,0))) ->  | M11: =IF(ISERROR(VLOOKUP($I11,[1]ART!$B:$G,3+OFFSET($A:$A,MATCH($A11,$A:$A,0)-2,8,1,1),FALSE)),"",(VLOOKUP($I11,[1]ART!$B:$G,3+OFFSET($A:$A,MATCH($A11,$A:$A,0)-2,8,1,1),FALSE))) ->  | O11: 1 | S11: =IF(ISNA(INDEX([1]ART!$H:$H,MATCH(I11,[1]ART!$B:$B,0))),"",INDEX([1]ART!$H:$H,MATCH(I11,[1]ART!$B:$B,0))) -> 
A12: 1 | B12: 03 | D12: 104 | G12: =IF(ISNA(INDEX([1]ART!$M:$M,MATCH(I12,[1]ART!$B:$B,0))),"",INDEX([1]ART!$M:$M,MATCH(I12,[1]ART!$B:$B,0))) ->  | H12: 7 | I12: =IF(ISNA(INDEX([1]ART!$B:$B,MATCH(F12,[1]ART!$M:$M,0))),"",INDEX([1]ART!$B:$B,MATCH(F12,[1]ART!$M:$M,0))) ->  | J12: =IF(ISNA(INDEX([1]ART!$C:$C,MATCH(I12,[1]ART!$B:$B,0))),"",INDEX([1]ART!$C:$C,MATCH(I12,[1]ART!$B:$B,0))) ->  | K12: =IF(ISNA(INDEX([1]ART!$D:$D,MATCH(I12,[1]ART!$B:$B,0))),"",INDEX([1]ART!$D:$D,MATCH(I12,[1]ART!$B:$B,0))) ->  | M12: =IF(ISERROR(VLOOKUP($I12,[1]ART!$B:$G,3+OFFSET($A:$A,MATCH($A12,$A:$A,0)-2,8,1,1),FALSE)),"",(VLOOKUP($I12,[1]ART!$B:$G,3+OFFSET($A:$A,MATCH($A12,$A:$A,0)-2,8,1,1),FALSE))) ->  | O12: 1 | S12: =IF(ISNA(INDEX([1]ART!$H:$H,MATCH(I12,[1]ART!$B:$B,0))),"",INDEX([1]ART!$H:$H,MATCH(I12,[1]ART!$B:$B,0))) -> 
A13: 1 | B13: 03 | D13: 104 | G13: =IF(ISNA(INDEX([1]ART!$M:$M,MATCH(I13,[1]ART!$B:$B,0))),"",INDEX([1]ART!$M:$M,MATCH(I13,[1]ART!$B:$B,0))) ->  | H13: 8 | I13: =IF(ISNA(INDEX([1]ART!$B:$B,MATCH(F13,[1]ART!$M:$M,0))),"",INDEX([1]ART!$B:$B,MATCH(F13,[1]ART!$M:$M,0))) ->  | J13: =IF(ISNA(INDEX([1]ART!$C:$C,MATCH(I13,[1]ART!$B:$B,0))),"",INDEX([1]ART!$C:$C,MATCH(I13,[1]ART!$B:$B,0))) ->  | K13: =IF(ISNA(INDEX([1]ART!$D:$D,MATCH(I13,[1]ART!$B:$B,0))),"",INDEX([1]ART!$D:$D,MATCH(I13,[1]ART!$B:$B,0))) ->  | M13: =IF(ISERROR(VLOOKUP($I13,[1]ART!$B:$G,3+OFFSET($A:$A,MATCH($A13,$A:$A,0)-2,8,1,1),FALSE)),"",(VLOOKUP($I13,[1]ART!$B:$G,3+OFFSET($A:$A,MATCH($A13,$A:$A,0)-2,8,1,1),FALSE))) ->  | O13: 1 | S13: =IF(ISNA(INDEX([1]ART!$H:$H,MATCH(I13,[1]ART!$B:$B,0))),"",INDEX([1]ART!$H:$H,MATCH(I13,[1]ART!$B:$B,0))) -> 
A14: 1 | B14: 03 | D14: 104 | G14: =IF(ISNA(INDEX([1]ART!$M:$M,MATCH(I14,[1]ART!$B:$B,0))),"",INDEX([1]ART!$M:$M,MATCH(I14,[1]ART!$B:$B,0))) ->  | H14: 9 | I14: =IF(ISNA(INDEX([1]ART!$B:$B,MATCH(F14,[1]ART!$M:$M,0))),"",INDEX([1]ART!$B:$B,MATCH(F14,[1]ART!$M:$M,0))) ->  | J14: =IF(ISNA(INDEX([1]ART!$C:$C,MATCH(I14,[1]ART!$B:$B,0))),"",INDEX([1]ART!$C:$C,MATCH(I14,[1]ART!$B:$B,0))) ->  | K14: =IF(ISNA(INDEX([1]ART!$D:$D,MATCH(I14,[1]ART!$B:$B,0))),"",INDEX([1]ART!$D:$D,MATCH(I14,[1]ART!$B:$B,0))) ->  | M14: =IF(ISERROR(VLOOKUP($I14,[1]ART!$B:$G,3+OFFSET($A:$A,MATCH($A14,$A:$A,0)-2,8,1,1),FALSE)),"",(VLOOKUP($I14,[1]ART!$B:$G,3+OFFSET($A:$A,MATCH($A14,$A:$A,0)-2,8,1,1),FALSE))) ->  | O14: 1 | S14: =IF(ISNA(INDEX([1]ART!$H:$H,MATCH(I14,[1]ART!$B:$B,0))),"",INDEX([1]ART!$H:$H,MATCH(I14,[1]ART!$B:$B,0))) -> 
A15: 1 | B15: 03 | D15: 104 | G15: =IF(ISNA(INDEX([1]ART!$M:$M,MATCH(I15,[1]ART!$B:$B,0))),"",INDEX([1]ART!$M:$M,MATCH(I15,[1]ART!$B:$B,0))) ->  | H15: 10 | I15: =IF(ISNA(INDEX([1]ART!$B:$B,MATCH(F15,[1]ART!$M:$M,0))),"",INDEX([1]ART!$B:$B,MATCH(F15,[1]ART!$M:$M,0))) ->  | J15: =IF(ISNA(INDEX([1]ART!$C:$C,MATCH(I15,[1]ART!$B:$B,0))),"",INDEX([1]ART!$C:$C,MATCH(I15,[1]ART!$B:$B,0))) ->  | K15: =IF(ISNA(INDEX([1]ART!$D:$D,MATCH(I15,[1]ART!$B:$B,0))),"",INDEX([1]ART!$D:$D,MATCH(I15,[1]ART!$B:$B,0))) ->  | M15: =IF(ISERROR(VLOOKUP($I15,[1]ART!$B:$G,3+OFFSET($A:$A,MATCH($A15,$A:$A,0)-2,8,1,1),FALSE)),"",(VLOOKUP($I15,[1]ART!$B:$G,3+OFFSET($A:$A,MATCH($A15,$A:$A,0)-2,8,1,1),FALSE))) ->  | O15: 1 | S15: =IF(ISNA(INDEX([1]ART!$H:$H,MATCH(I15,[1]ART!$B:$B,0))),"",INDEX([1]ART!$H:$H,MATCH(I15,[1]ART!$B:$B,0))) -> 
A16: 1 | B16: 03 | D16: 104 | G16: =IF(ISNA(INDEX([1]ART!$M:$M,MATCH(I16,[1]ART!$B:$B,0))),"",INDEX([1]ART!$M:$M,MATCH(I16,[1]ART!$B:$B,0))) ->  | H16: 11 | I16: =IF(ISNA(INDEX([1]ART!$B:$B,MATCH(F16,[1]ART!$M:$M,0))),"",INDEX([1]ART!$B:$B,MATCH(F16,[1]ART!$M:$M,0))) ->  | J16: =IF(ISNA(INDEX([1]ART!$C:$C,MATCH(I16,[1]ART!$B:$B,0))),"",INDEX([1]ART!$C:$C,MATCH(I16,[1]ART!$B:$B,0))) ->  | K16: =IF(ISNA(INDEX([1]ART!$D:$D,MATCH(I16,[1]ART!$B:$B,0))),"",INDEX([1]ART!$D:$D,MATCH(I16,[1]ART!$B:$B,0))) ->  | M16: =IF(ISERROR(VLOOKUP($I16,[1]ART!$B:$G,3+OFFSET($A:$A,MATCH($A16,$A:$A,0)-2,8,1,1),FALSE)),"",(VLOOKUP($I16,[1]ART!$B:$G,3+OFFSET($A:$A,MATCH($A16,$A:$A,0)-2,8,1,1),FALSE))) ->  | O16: 1 | S16: =IF(ISNA(INDEX([1]ART!$H:$H,MATCH(I16,[1]ART!$B:$B,0))),"",INDEX([1]ART!$H:$H,MATCH(I16,[1]ART!$B:$B,0))) -> 
A17: 1 | B17: 03 | D17: 104 | G17: =IF(ISNA(INDEX([1]ART!$M:$M,MATCH(I17,[1]ART!$B:$B,0))),"",INDEX([1]ART!$M:$M,MATCH(I17,[1]ART!$B:$B,0))) ->  | H17: 12 | I17: =IF(ISNA(INDEX([1]ART!$B:$B,MATCH(F17,[1]ART!$M:$M,0))),"",INDEX([1]ART!$B:$B,MATCH(F17,[1]ART!$M:$M,0))) ->  | J17: =IF(ISNA(INDEX([1]ART!$C:$C,MATCH(I17,[1]ART!$B:$B,0))),"",INDEX([1]ART!$C:$C,MATCH(I17,[1]ART!$B:$B,0))) ->  | K17: =IF(ISNA(INDEX([1]ART!$D:$D,MATCH(I17,[1]ART!$B:$B,0))),"",INDEX([1]ART!$D:$D,MATCH(I17,[1]ART!$B:$B,0))) ->  | M17: =IF(ISERROR(VLOOKUP($I17,[1]ART!$B:$G,3+OFFSET($A:$A,MATCH($A17,$A:$A,0)-2,8,1,1),FALSE)),"",(VLOOKUP($I17,[1]ART!$B:$G,3+OFFSET($A:$A,MATCH($A17,$A:$A,0)-2,8,1,1),FALSE))) ->  | O17: 1 | S17: =IF(ISNA(INDEX([1]ART!$H:$H,MATCH(I17,[1]ART!$B:$B,0))),"",INDEX([1]ART!$H:$H,MATCH(I17,[1]ART!$B:$B,0))) -> 
A18: 1 | B18: 03 | D18: 104 | G18: =IF(ISNA(INDEX([1]ART!$M:$M,MATCH(I18,[1]ART!$B:$B,0))),"",INDEX([1]ART!$M:$M,MATCH(I18,[1]ART!$B:$B,0))) ->  | H18: 13 | I18: =IF(ISNA(INDEX([1]ART!$B:$B,MATCH(F18,[1]ART!$M:$M,0))),"",INDEX([1]ART!$B:$B,MATCH(F18,[1]ART!$M:$M,0))) ->  | J18: =IF(ISNA(INDEX([1]ART!$C:$C,MATCH(I18,[1]ART!$B:$B,0))),"",INDEX([1]ART!$C:$C,MATCH(I18,[1]ART!$B:$B,0))) ->  | K18: =IF(ISNA(INDEX([1]ART!$D:$D,MATCH(I18,[1]ART!$B:$B,0))),"",INDEX([1]ART!$D:$D,MATCH(I18,[1]ART!$B:$B,0))) ->  | M18: =IF(ISERROR(VLOOKUP($I18,[1]ART!$B:$G,3+OFFSET($A:$A,MATCH($A18,$A:$A,0)-2,8,1,1),FALSE)),"",(VLOOKUP($I18,[1]ART!$B:$G,3+OFFSET($A:$A,MATCH($A18,$A:$A,0)-2,8,1,1),FALSE))) ->  | O18: 1 | S18: =IF(ISNA(INDEX([1]ART!$H:$H,MATCH(I18,[1]ART!$B:$B,0))),"",INDEX([1]ART!$H:$H,MATCH(I18,[1]ART!$B:$B,0))) -> 
A19: 1 | B19: 03 | D19: 104 | G19: =IF(ISNA(INDEX([1]ART!$M:$M,MATCH(I19,[1]ART!$B:$B,0))),"",INDEX([1]ART!$M:$M,MATCH(I19,[1]ART!$B:$B,0))) ->  | H19: 14 | I19: =IF(ISNA(INDEX([1]ART!$B:$B,MATCH(F19,[1]ART!$M:$M,0))),"",INDEX([1]ART!$B:$B,MATCH(F19,[1]ART!$M:$M,0))) ->  | J19: =IF(ISNA(INDEX([1]ART!$C:$C,MATCH(I19,[1]ART!$B:$B,0))),"",INDEX([1]ART!$C:$C,MATCH(I19,[1]ART!$B:$B,0))) ->  | K19: =IF(ISNA(INDEX([1]ART!$D:$D,MATCH(I19,[1]ART!$B:$B,0))),"",INDEX([1]ART!$D:$D,MATCH(I19,[1]ART!$B:$B,0))) ->  | M19: =IF(ISERROR(VLOOKUP($I19,[1]ART!$B:$G,3+OFFSET($A:$A,MATCH($A19,$A:$A,0)-2,8,1,1),FALSE)),"",(VLOOKUP($I19,[1]ART!$B:$G,3+OFFSET($A:$A,MATCH($A19,$A:$A,0)-2,8,1,1),FALSE))) ->  | O19: 1 | S19: =IF(ISNA(INDEX([1]ART!$H:$H,MATCH(I19,[1]ART!$B:$B,0))),"",INDEX([1]ART!$H:$H,MATCH(I19,[1]ART!$B:$B,0))) -> 
A20: 1 | B20: 03 | D20: 104 | G20: =IF(ISNA(INDEX([1]ART!$M:$M,MATCH(I20,[1]ART!$B:$B,0))),"",INDEX([1]ART!$M:$M,MATCH(I20,[1]ART!$B:$B,0))) ->  | H20: 15 | I20: =IF(ISNA(INDEX([1]ART!$B:$B,MATCH(F20,[1]ART!$M:$M,0))),"",INDEX([1]ART!$B:$B,MATCH(F20,[1]ART!$M:$M,0))) ->  | J20: =IF(ISNA(INDEX([1]ART!$C:$C,MATCH(I20,[1]ART!$B:$B,0))),"",INDEX([1]ART!$C:$C,MATCH(I20,[1]ART!$B:$B,0))) ->  | K20: =IF(ISNA(INDEX([1]ART!$D:$D,MATCH(I20,[1]ART!$B:$B,0))),"",INDEX([1]ART!$D:$D,MATCH(I20,[1]ART!$B:$B,0))) ->  | M20: =IF(ISERROR(VLOOKUP($I20,[1]ART!$B:$G,3+OFFSET($A:$A,MATCH($A20,$A:$A,0)-2,8,1,1),FALSE)),"",(VLOOKUP($I20,[1]ART!$B:$G,3+OFFSET($A:$A,MATCH($A20,$A:$A,0)-2,8,1,1),FALSE))) ->  | O20: 1 | S20: =IF(ISNA(INDEX([1]ART!$H:$H,MATCH(I20,[1]ART!$B:$B,0))),"",INDEX([1]ART!$H:$H,MATCH(I20,[1]ART!$B:$B,0))) -> 
A21: 1 | B21: 03 | D21: 104 | G21: =IF(ISNA(INDEX([1]ART!$M:$M,MATCH(I21,[1]ART!$B:$B,0))),"",INDEX([1]ART!$M:$M,MATCH(I21,[1]ART!$B:$B,0))) ->  | H21: 16 | I21: =IF(ISNA(INDEX([1]ART!$B:$B,MATCH(F21,[1]ART!$M:$M,0))),"",INDEX([1]ART!$B:$B,MATCH(F21,[1]ART!$M:$M,0))) ->  | J21: =IF(ISNA(INDEX([1]ART!$C:$C,MATCH(I21,[1]ART!$B:$B,0))),"",INDEX([1]ART!$C:$C,MATCH(I21,[1]ART!$B:$B,0))) ->  | K21: =IF(ISNA(INDEX([1]ART!$D:$D,MATCH(I21,[1]ART!$B:$B,0))),"",INDEX([1]ART!$D:$D,MATCH(I21,[1]ART!$B:$B,0))) ->  | M21: =IF(ISERROR(VLOOKUP($I21,[1]ART!$B:$G,3+OFFSET($A:$A,MATCH($A21,$A:$A,0)-2,8,1,1),FALSE)),"",(VLOOKUP($I21,[1]ART!$B:$G,3+OFFSET($A:$A,MATCH($A21,$A:$A,0)-2,8,1,1),FALSE))) ->  | O21: 1 | S21: =IF(ISNA(INDEX([1]ART!$H:$H,MATCH(I21,[1]ART!$B:$B,0))),"",INDEX([1]ART!$H:$H,MATCH(I21,[1]ART!$B:$B,0))) -> 
A22: 1 | B22: 03 | D22: 104 | G22: =IF(ISNA(INDEX([1]ART!$M:$M,MATCH(I22,[1]ART!$B:$B,0))),"",INDEX([1]ART!$M:$M,MATCH(I22,[1]ART!$B:$B,0))) ->  | H22: 17 | I22: =IF(ISNA(INDEX([1]ART!$B:$B,MATCH(F22,[1]ART!$M:$M,0))),"",INDEX([1]ART!$B:$B,MATCH(F22,[1]ART!$M:$M,0))) ->  | J22: =IF(ISNA(INDEX([1]ART!$C:$C,MATCH(I22,[1]ART!$B:$B,0))),"",INDEX([1]ART!$C:$C,MATCH(I22,[1]ART!$B:$B,0))) ->  | K22: =IF(ISNA(INDEX([1]ART!$D:$D,MATCH(I22,[1]ART!$B:$B,0))),"",INDEX([1]ART!$D:$D,MATCH(I22,[1]ART!$B:$B,0))) ->  | M22: =IF(ISERROR(VLOOKUP($I22,[1]ART!$B:$G,3+OFFSET($A:$A,MATCH($A22,$A:$A,0)-2,8,1,1),FALSE)),"",(VLOOKUP($I22,[1]ART!$B:$G,3+OFFSET($A:$A,MATCH($A22,$A:$A,0)-2,8,1,1),FALSE))) ->  | N22: =IFERROR(L22*M22,"") ->  | O22: =A22 -> 1 | Q22: =IFERROR(N22*P22,"") ->  | S22: =IF(ISNA(INDEX([1]ART!$H:$H,MATCH(I22,[1]ART!$B:$B,0))),"",INDEX([1]ART!$H:$H,MATCH(I22,[1]ART!$B:$B,0))) -> 
A23: 1 | B23: 03 | D23: 104 | G23: =IF(ISNA(INDEX([1]ART!$M:$M,MATCH(I23,[1]ART!$B:$B,0))),"",INDEX([1]ART!$M:$M,MATCH(I23,[1]ART!$B:$B,0))) ->  | H23: 18 | I23: =IF(ISNA(INDEX([1]ART!$B:$B,MATCH(F23,[1]ART!$M:$M,0))),"",INDEX([1]ART!$B:$B,MATCH(F23,[1]ART!$M:$M,0))) ->  | J23: =IF(ISNA(INDEX([1]ART!$C:$C,MATCH(I23,[1]ART!$B:$B,0))),"",INDEX([1]ART!$C:$C,MATCH(I23,[1]ART!$B:$B,0))) ->  | K23: =IF(ISNA(INDEX([1]ART!$D:$D,MATCH(I23,[1]ART!$B:$B,0))),"",INDEX([1]ART!$D:$D,MATCH(I23,[1]ART!$B:$B,0))) ->  | M23: =IF(ISERROR(VLOOKUP($I23,[1]ART!$B:$G,3+OFFSET($A:$A,MATCH($A23,$A:$A,0)-2,8,1,1),FALSE)),"",(VLOOKUP($I23,[1]ART!$B:$G,3+OFFSET($A:$A,MATCH($A23,$A:$A,0)-2,8,1,1),FALSE))) ->  | O23: 1 | S23: =IF(ISNA(INDEX([1]ART!$H:$H,MATCH(I23,[1]ART!$B:$B,0))),"",INDEX([1]ART!$H:$H,MATCH(I23,[1]ART!$B:$B,0))) -> 
A24: 1 | B24: 03 | D24: 104 | G24: =IF(ISNA(INDEX([1]ART!$M:$M,MATCH(I24,[1]ART!$B:$B,0))),"",INDEX([1]ART!$M:$M,MATCH(I24,[1]ART!$B:$B,0))) ->  | H24: 19 | I24: =IF(ISNA(INDEX([1]ART!$B:$B,MATCH(F24,[1]ART!$M:$M,0))),"",INDEX([1]ART!$B:$B,MATCH(F24,[1]ART!$M:$M,0))) ->  | J24: =IF(ISNA(INDEX([1]ART!$C:$C,MATCH(I24,[1]ART!$B:$B,0))),"",INDEX([1]ART!$C:$C,MATCH(I24,[1]ART!$B:$B,0))) ->  | K24: =IF(ISNA(INDEX([1]ART!$D:$D,MATCH(I24,[1]ART!$B:$B,0))),"",INDEX([1]ART!$D:$D,MATCH(I24,[1]ART!$B:$B,0))) ->  | M24: =IF(ISERROR(VLOOKUP($I24,[1]ART!$B:$G,3+OFFSET($A:$A,MATCH($A24,$A:$A,0)-2,8,1,1),FALSE)),"",(VLOOKUP($I24,[1]ART!$B:$G,3+OFFSET($A:$A,MATCH($A24,$A:$A,0)-2,8,1,1),FALSE))) ->  | O24: 1 | S24: =IF(ISNA(INDEX([1]ART!$H:$H,MATCH(I24,[1]ART!$B:$B,0))),"",INDEX([1]ART!$H:$H,MATCH(I24,[1]ART!$B:$B,0))) -> 
A25: 1 | B25: 03 | D25: 104 | G25: =IF(ISNA(INDEX([1]ART!$M:$M,MATCH(I25,[1]ART!$B:$B,0))),"",INDEX([1]ART!$M:$M,MATCH(I25,[1]ART!$B:$B,0))) ->  | H25: 20 | I25: =IF(ISNA(INDEX([1]ART!$B:$B,MATCH(F25,[1]ART!$M:$M,0))),"",INDEX([1]ART!$B:$B,MATCH(F25,[1]ART!$M:$M,0))) ->  | J25: =IF(ISNA(INDEX([1]ART!$C:$C,MATCH(I25,[1]ART!$B:$B,0))),"",INDEX([1]ART!$C:$C,MATCH(I25,[1]ART!$B:$B,0))) ->  | K25: =IF(ISNA(INDEX([1]ART!$D:$D,MATCH(I25,[1]ART!$B:$B,0))),"",INDEX([1]ART!$D:$D,MATCH(I25,[1]ART!$B:$B,0))) ->  | M25: =IF(ISERROR(VLOOKUP($I25,[1]ART!$B:$G,3+OFFSET($A:$A,MATCH($A25,$A:$A,0)-2,8,1,1),FALSE)),"",(VLOOKUP($I25,[1]ART!$B:$G,3+OFFSET($A:$A,MATCH($A25,$A:$A,0)-2,8,1,1),FALSE))) ->  | O25: 1 | S25: =IF(ISNA(INDEX([1]ART!$H:$H,MATCH(I25,[1]ART!$B:$B,0))),"",INDEX([1]ART!$H:$H,MATCH(I25,[1]ART!$B:$B,0))) -> 

Sheet Report
B1: REPORT | H1: COMPTOIR SAISIE
A4: N° Ordre | B4: Réf. Mois | C4: Date | D4: N° Fiche | E4: N° Fiche | F4: Client | G4: Réf. Art. | H4: N° Art. | I4: Code Article | J4: Désignation Article | K4: Unité | L4: Quantité | M4: Prix Unité HT | N4: Montant HT Brut | O4: Indice | P4: Remise % | Q4: Remise Montant | R4: Montant HT Net | S4: Taux TVA | T4: Montant TVA | U4: Montant TTC
A5: C | B5: 03 | C5: 2017-03-02 | E5: 101 | F5: COMPTOIR | I5: 1 | J5: =IF(ISNA(INDEX([1]ART!$C:$C,MATCH(I5,[1]ART!$B:$B,0))),"",INDEX([1]ART!$C:$C,MATCH(I5,[1]ART!$B:$B,0))) ->  | K5: =IF(ISNA(INDEX([1]ART!$D:$D,MATCH(I5,[1]ART!$B:$B,0))),"",INDEX([1]ART!$D:$D,MATCH(I5,[1]ART!$B:$B,0))) ->  | N5: =SUMIF(A:A,O:O,N:N) -> 3820 | O5: =O6 -> 1 | R5: =N5-Q5 -> 2440 | S5: =S6 -> 0.19 | T5: =R5*S5 -> 463.6 | U5: =R5+T5 -> 2903.6
A6: 1 | B6: =IF(C6<>"","",IF(B5="",B5,B5)) -> 03 | D6: =IF(E6<>"","",IF(D5="",E5,D5)) -> 101 | G6: =IF(ISNA(INDEX([1]ART!$M:$M,MATCH(I6,[1]ART!$B:$B,0))),"",INDEX([1]ART!$M:$M,MATCH(I6,[1]ART!$B:$B,0))) -> 0 | H6: 1 | I6: C3 | J6: =IF(ISNA(INDEX([1]ART!$C:$C,MATCH(I6,[1]ART!$B:$B,0))),"",INDEX([1]ART!$C:$C,MATCH(I6,[1]ART!$B:$B,0))) -> Copie Noir & Blanc A3-R / Papier | K6: =IF(ISNA(INDEX([1]ART!$D:$D,MATCH(I6,[1]ART!$B:$B,0))),"",INDEX([1]ART!$D:$D,MATCH(I6,[1]ART!$B:$B,0))) -> U | L6: 3 | M6: 10 | N6: =L6*M6 -> 30 | O6: =CTS[[#This Row],[N° Ordre]] -> 1 | P6: =Saisie[[#This Row],[Remise Montant]]/Saisie[[#This Row],[Montant HT Brut]] -> 0 | R6: =CTS[[#This Row],[Montant HT Brut]]-CTS[[#This Row],[Remise Montant]] -> 30 | S6: =IF(ISNA(INDEX([1]ART!$H:$H,MATCH(I6,[1]ART!$B:$B,0))),"",INDEX([1]ART!$H:$H,MATCH(I6,[1]ART!$B:$B,0))) -> 0.19 | T6: =CTS[[#This Row],[Montant HT Net]]*CTS[[#This Row],[Taux TVA]] -> 5.7 | U6: =CTS[[#This Row],[Montant HT Net]]+CTS[[#This Row],[Montant TVA ]] -> 35.7
A7: =A6 -> 1 | B7: 03 | D7: 101 | G7: =IF(ISNA(INDEX([1]ART!$M:$M,MATCH(I7,[1]ART!$B:$B,0))),"",INDEX([1]ART!$M:$M,MATCH(I7,[1]ART!$B:$B,0))) -> 0 | H7: 2 | I7: TP | J7: =IF(ISNA(INDEX([1]ART!$C:$C,MATCH(I7,[1]ART!$B:$B,0))),"",INDEX([1]ART!$C:$C,MATCH(I7,[1]ART!$B:$B,0))) -> Tirage Noir & Blanc / Papier | K7: =IF(ISNA(INDEX([1]ART!$D:$D,MATCH(I7,[1]ART!$B:$B,0))),"",INDEX([1]ART!$D:$D,MATCH(I7,[1]ART!$B:$B,0))) -> ML | L7: 20 | M7: 80 | N7: 1600 | O7: =CTS[[#This Row],[N° Ordre]] -> 1 | P7: =IF(E7<>"","",IF(P6="",P6,P6)) -> 0 | R7: =CTS[[#This Row],[Montant HT Brut]]-CTS[[#This Row],[Remise Montant]] -> 1600 | S7: =IF(ISNA(INDEX([1]ART!$H:$H,MATCH(I7,[1]ART!$B:$B,0))),"",INDEX([1]ART!$H:$H,MATCH(I7,[1]ART!$B:$B,0))) -> 0.19 | T7: =CTS[[#This Row],[Montant HT Net]]*CTS[[#This Row],[Taux TVA]] -> 304 | U7: =CTS[[#This Row],[Montant HT Net]]+CTS[[#This Row],[Montant TVA ]] -> 1904
A8: =A7 -> 1 | B8: 03 | D8: 101 | G8: =IF(ISNA(INDEX([1]ART!$M:$M,MATCH(I8,[1]ART!$B:$B,0))),"",INDEX([1]ART!$M:$M,MATCH(I8,[1]ART!$B:$B,0))) -> 0 | H8: 3 | I8: PP | J8: =IF(ISNA(INDEX([1]ART!$C:$C,MATCH(I8,[1]ART!$B:$B,0))),"",INDEX([1]ART!$C:$C,MATCH(I8,[1]ART!$B:$B,0))) -> Traçage Noir & Blanc / Papier | K8: =IF(ISNA(INDEX([1]ART!$D:$D,MATCH(I8,[1]ART!$B:$B,0))),"",INDEX([1]ART!$D:$D,MATCH(I8,[1]ART!$B:$B,0))) -> ML | L8: 5 | M8: 160 | N8: 800 | O8: =CTS[[#This Row],[N° Ordre]] -> 1 | P8: 0 | R8: =CTS[[#This Row],[Montant HT Brut]]-CTS[[#This Row],[Remise Montant]] -> 800 | S8: =S5 -> 0.19 | T8: =CTS[[#This Row],[Montant HT Net]]*CTS[[#This Row],[Taux TVA]] -> 152 | U8: =CTS[[#This Row],[Montant HT Net]]+CTS[[#This Row],[Montant TVA ]] -> 952
A9: =A8 -> 1 | B9: 03 | D9: 101 | G9: =IF(ISNA(INDEX([1]ART!$M:$M,MATCH(I9,[1]ART!$B:$B,0))),"",INDEX([1]ART!$M:$M,MATCH(I9,[1]ART!$B:$B,0))) -> 0 | H9: 4 | I9: C4 | J9: =IF(ISNA(INDEX([1]ART!$C:$C,MATCH(I9,[1]ART!$B:$B,0))),"",INDEX([1]ART!$C:$C,MATCH(I9,[1]ART!$B:$B,0))) -> Copie Noir & Blanc A4-R / Papier | K9: =IF(ISNA(INDEX([1]ART!$D:$D,MATCH(I9,[1]ART!$B:$B,0))),"",INDEX([1]ART!$D:$D,MATCH(I9,[1]ART!$B:$B,0))) -> U | L9: 2 | M9: 5 | N9: 10 | O9: =CTS[[#This Row],[N° Ordre]] -> 1 | P9: 0 | R9: =CTS[[#This Row],[Montant HT Brut]]-CTS[[#This Row],[Remise Montant]] -> 10 | S9: =S6 -> 0.19 | T9: =CTS[[#This Row],[Montant HT Net]]*CTS[[#This Row],[Taux TVA]] -> 1.9 | U9: =CTS[[#This Row],[Montant HT Net]]+CTS[[#This Row],[Montant TVA ]] -> 11.9
A10: C | B10: 03 | C10: 2017-03-02 | E10: =LOOKUP(9^9,E4:E9)+1 -> 102 | F10: COMPTOIR | I10: 1 | J10: =IF(ISNA(INDEX([1]ART!$C:$C,MATCH(I10,[1]ART!$B:$B,0))),"",INDEX([1]ART!$C:$C,MATCH(I10,[1]ART!$B:$B,0))) ->  | K10: =IF(ISNA(INDEX([1]ART!$D:$D,MATCH(I10,[1]ART!$B:$B,0))),"",INDEX([1]ART!$D:$D,MATCH(I10,[1]ART!$B:$B,0))) ->  | N10: =SUMIF(A:A,O:O,N:N) -> 5250 | O10: =O11 -> 2 | R10: =N10-Q10 -> 5250 | S10: =S11 -> 0.19 | T10: =R10*S10 -> 997.5 | U10: =R10+T10 -> 6247.5
A11: =LOOKUP(9^9,A5:A10)+1 -> 2 | B11: 03 | D11: 102 | G11: =IF(ISNA(INDEX([1]ART!$M:$M,MATCH(I11,[1]ART!$B:$B,0))),"",INDEX([1]ART!$M:$M,MATCH(I11,[1]ART!$B:$B,0))) -> 0 | H11: 6 | I11: 1-P4XB | J11: =IF(ISNA(INDEX([1]ART!$C:$C,MATCH(I11,[1]ART!$B:$B,0))),"",INDEX([1]ART!$C:$C,MATCH(I11,[1]ART!$B:$B,0))) -> Papier A4 / 080 gr / 500 f. extra blanc Xeropap Bleu | K11: =IF(ISNA(INDEX([1]ART!$D:$D,MATCH(I11,[1]ART!$B:$B,0))),"",INDEX([1]ART!$D:$D,MATCH(I11,[1]ART!$B:$B,0))) -> U | L11: 6 | M11: 400 | N11: 2400 | O11: =CTS[[#This Row],[N° Ordre]] -> 2 | P11: 0 | R11: =CTS[[#This Row],[Montant HT Brut]]-CTS[[#This Row],[Remise Montant]] -> 2400 | S11: =IF(ISNA(INDEX([1]ART!$H:$H,MATCH(I11,[1]ART!$B:$B,0))),"",INDEX([1]ART!$H:$H,MATCH(I11,[1]ART!$B:$B,0))) -> 0.19 | T11: =CTS[[#This Row],[Montant HT Net]]*CTS[[#This Row],[Taux TVA]] -> 456 | U11: =CTS[[#This Row],[Montant HT Net]]+CTS[[#This Row],[Montant TVA ]] -> 2856
A12: 2 | B12: 03 | D12: 102 | G12: =IF(ISNA(INDEX([1]ART!$M:$M,MATCH(I12,[1]ART!$B:$B,0))),"",INDEX([1]ART!$M:$M,MATCH(I12,[1]ART!$B:$B,0))) -> 0 | H12: 7 | I12: C8 | J12: =IF(ISNA(INDEX([1]ART!$C:$C,MATCH(I12,[1]ART!$B:$B,0))),"",INDEX([1]ART!$C:$C,MATCH(I12,[1]ART!$B:$B,0))) -> Copie Noir & Blanc A4-RV / Papier | K12: =IF(ISNA(INDEX([1]ART!$D:$D,MATCH(I12,[1]ART!$B:$B,0))),"",INDEX([1]ART!$D:$D,MATCH(I12,[1]ART!$B:$B,0))) -> U | L12: 15 | M12: 10 | N12: =L12*M12 -> 150 | O12: =CTS[[#This Row],[N° Ordre]] -> 2 | P12: 0 | R12: =CTS[[#This Row],[Montant HT Brut]]-CTS[[#This Row],[Remise Montant]] -> 150 | S12: =IF(ISNA(INDEX([1]ART!$H:$H,MATCH(I12,[1]ART!$B:$B,0))),"",INDEX([1]ART!$H:$H,MATCH(I12,[1]ART!$B:$B,0))) -> 0.19 | T12: =CTS[[#This Row],[Montant HT Net]]*CTS[[#This Row],[Taux TVA]] -> 28.5 | U12: =CTS[[#This Row],[Montant HT Net]]+CTS[[#This Row],[Montant TVA ]] -> 178.5
A13: 2 | B13: 03 | D13: 102 | G13: =IF(ISNA(INDEX([1]ART!$M:$M,MATCH(I13,[1]ART!$B:$B,0))),"",INDEX([1]ART!$M:$M,MATCH(I13,[1]ART!$B:$B,0))) -> 0 | H13: 8 | I13: TP | J13: =IF(ISNA(INDEX([1]ART!$C:$C,MATCH(I13,[1]ART!$B:$B,0))),"",INDEX([1]ART!$C:$C,MATCH(I13,[1]ART!$B:$B,0))) -> Tirage Noir & Blanc / Papier | K13: =IF(ISNA(INDEX([1]ART!$D:$D,MATCH(I13,[1]ART!$B:$B,0))),"",INDEX([1]ART!$D:$D,MATCH(I13,[1]ART!$B:$B,0))) -> ML | L13: 6 | M13: 80 | N13: =IFERROR(L13*M13,"") -> 480 | O13: =CTS[[#This Row],[N° Ordre]] -> 2 | P13: 0 | R13: =CTS[[#This Row],[Montant HT Brut]]-CTS[[#This Row],[Remise Montant]] -> 480 | S13: =IF(ISNA(INDEX([1]ART!$H:$H,MATCH(I13,[1]ART!$B:$B,0))),"",INDEX([1]ART!$H:$H,MATCH(I13,[1]ART!$B:$B,0))) -> 0.19 | T13: =CTS[[#This Row],[Montant HT Net]]*CTS[[#This Row],[Taux TVA]] -> 91.2 | U13: =CTS[[#This Row],[Montant HT Net]]+CTS[[#This Row],[Montant TVA ]] -> 571.2
A14: 2 | B14: 03 | D14: 102 | G14: =IF(ISNA(INDEX([1]ART!$M:$M,MATCH(I14,[1]ART!$B:$B,0))),"",INDEX([1]ART!$M:$M,MATCH(I14,[1]ART!$B:$B,0))) -> 0 | H14: 9 | I14: PP | J14: =IF(ISNA(INDEX([1]ART!$C:$C,MATCH(I14,[1]ART!$B:$B,0))),"",INDEX([1]ART!$C:$C,MATCH(I14,[1]ART!$B:$B,0))) -> Traçage Noir & Blanc / Papier | K14: =IF(ISNA(INDEX([1]ART!$D:$D,MATCH(I14,[1]ART!$B:$B,0))),"",INDEX([1]ART!$D:$D,MATCH(I14,[1]ART!$B:$B,0))) -> ML | L14: 12 | M14: 160 | N14: =IFERROR(L14*M14,"") -> 1920 | O14: =CTS[[#This Row],[N° Ordre]] -> 2 | P14: 0 | R14: =CTS[[#This Row],[Montant HT Brut]]-CTS[[#This Row],[Remise Montant]] -> 1920 | S14: =IF(ISNA(INDEX([1]ART!$H:$H,MATCH(I14,[1]ART!$B:$B,0))),"",INDEX([1]ART!$H:$H,MATCH(I14,[1]ART!$B:$B,0))) -> 0.19 | T14: =CTS[[#This Row],[Montant HT Net]]*CTS[[#This Row],[Taux TVA]] -> 364.8 | U14: =CTS[[#This Row],[Montant HT Net]]+CTS[[#This Row],[Montant TVA ]] -> 2284.8
A15: 2 | B15: 03 | D15: 102 | G15: =IF(ISNA(INDEX([1]ART!$M:$M,MATCH(I15,[1]ART!$B:$B,0))),"",INDEX([1]ART!$M:$M,MATCH(I15,[1]ART!$B:$B,0))) -> 0 | H15: 10 | I15: N3 | J15: =IF(ISNA(INDEX([1]ART!$C:$C,MATCH(I15,[1]ART!$B:$B,0))),"",INDEX([1]ART!$C:$C,MATCH(I15,[1]ART!$B:$B,0))) -> Numérisation Noir & Blanc A3 à plat | K15: =IF(ISNA(INDEX([1]ART!$D:$D,MATCH(I15,[1]ART!$B:$B,0))),"",INDEX([1]ART!$D:$D,MATCH(I15,[1]ART!$B:$B,0))) -> U | L15: 5 | M15: 60 | N15: =IFERROR(L15*M15,"") -> 300 | O15: =CTS[[#This Row],[N° Ordre]] -> 2 | P15: 0 | R15: =CTS[[#This Row],[Montant HT Brut]]-CTS[[#This Row],[Remise Montant]] -> 300 | S15: =IF(ISNA(INDEX([1]ART!$H:$H,MATCH(I15,[1]ART!$B:$B,0))),"",INDEX([1]ART!$H:$H,MATCH(I15,[1]ART!$B:$B,0))) -> 0.19 | T15: =CTS[[#This Row],[Montant HT Net]]*CTS[[#This Row],[Taux TVA]] -> 57 | U15: =CTS[[#This Row],[Montant HT Net]]+CTS[[#This Row],[Montant TVA ]] -> 357
A16: C | B16: 03 | C16: 2017-03-02 | E16: =LOOKUP(9^9,E10:E15)+1 -> 103 | F16: COMPTOIR | I16: 1 | J16: =IF(ISNA(INDEX([1]ART!$C:$C,MATCH(I16,[1]ART!$B:$B,0))),"",INDEX([1]ART!$C:$C,MATCH(I16,[1]ART!$B:$B,0))) ->  | K16: =IF(ISNA(INDEX([1]ART!$D:$D,MATCH(I16,[1]ART!$B:$B,0))),"",INDEX([1]ART!$D:$D,MATCH(I16,[1]ART!$B:$B,0))) ->  | N16: =SUMIF(A:A,O:O,N:N) -> 250 | O16: =O17 -> 3 | R16: =N16-Q16 -> 250 | S16: =S17 -> 0.19 | T16: =R16*S16 -> 47.5 | U16: =R16+T16 -> 297.5
A17: =LOOKUP(9^9,A11:A16)+1 -> 3 | B17: 03 | D17: 103 | G17: =IF(ISNA(INDEX([1]ART!$M:$M,MATCH(I17,[1]ART!$B:$B,0))),"",INDEX([1]ART!$M:$M,MATCH(I17,[1]ART!$B:$B,0))) -> 0 | H17: 12 | I17: C4 | J17: =IF(ISNA(INDEX([1]ART!$C:$C,MATCH(I17,[1]ART!$B:$B,0))),"",INDEX([1]ART!$C:$C,MATCH(I17,[1]ART!$B:$B,0))) -> Copie Noir & Blanc A4-R / Papier | K17: =IF(ISNA(INDEX([1]ART!$D:$D,MATCH(I17,[1]ART!$B:$B,0))),"",INDEX([1]ART!$D:$D,MATCH(I17,[1]ART!$B:$B,0))) -> U | L17: 50 | M17: 5 | N17: =IFERROR(L17*M17,"") -> 250 | O17: =CTS[[#This Row],[N° Ordre]] -> 3 | P17: 0 | R17: =CTS[[#This Row],[Montant HT Brut]]-CTS[[#This Row],[Remise Montant]] -> 250 | S17: =IF(ISNA(INDEX([1]ART!$H:$H,MATCH(I17,[1]ART!$B:$B,0))),"",INDEX([1]ART!$H:$H,MATCH(I17,[1]ART!$B:$B,0))) -> 0.19 | T17: =CTS[[#This Row],[Montant HT Net]]*CTS[[#This Row],[Taux TVA]] -> 47.5 | U17: =CTS[[#This Row],[Montant HT Net]]+CTS[[#This Row],[Montant TVA ]] -> 297.5
